bitfinex-derivatives/quotes_ETHF0:USTF0_20250110
["timestamp","ask_amount","ask_price","bid_price","bid_amount"]
[1736468358232,0.4491,3230.0,3229.4,3.51747]
[1736468358426,3.51739,3230.2,3229.4,3.2078]
[1736468358633,3.2078,3230.2,3229.5,0.9345]
[1736468358931,0.3096,3230.1,3229.5,0.9345]
[1736468359129,3.51739,3230.2,3229.8,0.30962]
[1736468359330,3.2078,3230.2,3229.5,0.9345]
[1736468359926,0.3097,3229.1,3228.8,0.30972]
[1736468360125,3.2078,3229.4,3228.7,4.1296]
[1736468360333,0.30972,3228.8,3228.7,3.6799]
[1736468360628,3.2078,3229.4,3228.7,3.6799]
[1736468360828,0.3097,3229.1,3228.7,3.98963]
[1736468361226,3.2078,3229.4,3228.7,3.98963]
[1736468361532,0.3097,3229.0,3228.7,3.6799]
[1736468362129,3.2078,3229.4,3228.7,3.6799]
[1736468362434,0.3097,3229.1,3228.7,3.98963]
[1736468362925,3.2078,3229.4,3228.7,3.6799]
[1736468363237,0.30971,3229.0,3228.7,3.6799]
[1736468363427,0.3097,3229.1,3228.7,3.98963]
[1736468364331,3.2078,3229.4,3228.7,3.6799]
[1736468364533,0.8835,3229.7,3229.1,3.2078]
[1736468364724,0.30967,3229.4,3229.1,3.2078]
[1736468365037,0.30967,3229.4,3229.1,3.20884574]
[1736468365233,0.8835,3229.7,3229.1,3.20884574]
[1736468365536,0.75194,3229.7,3229.3,0.30967]
[1736468365937,0.30965,3229.6,3229.2,0.75768]
[1736468366231,0.30966,3229.5,3229.2,0.448]
[1736468366429,0.30968,3229.2,3229.1,3.20884574]
[1736468366624,0.30968,3229.2,3229.1,0.00104574]
[1736468369234,0.30968,3229.2,3228.2,3.6577]
[1736468369235,0.30977,3228.3,3228.2,3.6577]
[1736468369437,0.30978,3228.3,3227.8,3.95851]
[1736468369628,0.30978,3228.3,3227.9,0.30981]
[1736468369829,0.30977,3228.4,3228.0,0.3098]
[1736468370035,0.30976,3228.5,3228.0,0.3098]
[1736468370228,0.9135,3228.7,3227.9,40.8]
[1736468370429,0.9135,3228.7,3228.0,0.3098]
[1736468370430,0.30976,3228.4,3228.0,0.3098]
[1736468370629,0.30977,3228.3,3227.9,41.1098]
[1736468371232,1.16074385,3228.7,3227.9,41.1098]
[1736468371233,0.30975,3228.6,3228.2,0.30978]
[1736468371429,3.2078,3228.8,3228.1,2.43370529]
[1736468371630,0.30968,3229.3,3228.6,3.2078]
[1736468371826,0.3097,3229.1,3228.7,0.76753]
[1736468372134,3.2078,3229.5,3228.7,0.76753]
[1736468372135,0.30971,3229.0,3228.7,0.4578]
[1736468372439,2.43370529,3229.4,3228.6,3.2078]
[1736468372737,3.6499,3228.9,3228.1,3.6656]
[1736468373038,0.30976,3228.5,3228.1,3.97539]
[1736468373239,0.4698,3228.8,3228.1,3.6656]
[1736468373430,0.30975,3228.5,3228.2,0.30978]
[1736468374339,3.6776,3228.8,3228.2,0.30978]
[1736468374532,3.6776,3228.8,3228.1,3.97539]
[1736468374533,0.30976,3228.5,3228.1,3.97539]
[1736468374733,0.30976,3228.4,3228.1,3.97539]
[1736468375030,0.30975,3228.5,3228.2,0.30978]
[1736468375426,0.30975,3228.6,3228.2,0.30978]
[1736468375836,0.30971,3229.0,3228.7,0.30973]
[1736468376033,3.51749,3229.2,3228.8,0.30971]
[1736468376230,0.3097,3229.1,3228.8,0.30971]
[1736468377643,3.2078,3229.2,3228.5,3.6462]
[1736468377836,0.30965,3229.6,3229.3,0.30967]
[1736468378635,0.8979,3229.7,3229.1,0.8738]
[1736468378843,0.30965,3229.6,3229.3,0.30967]
[1736468379037,3.2078,3230.2,3229.5,3.2078]
[1736468379243,0.3096,3230.1,3229.8,0.30962]
[1736468379537,4.1277,3230.2,3229.7,0.30963]
[1736468379739,4.1277,3230.2,3229.5,44.0078]
[1736468379740,0.30961,3230.1,3229.5,44.0078]
[1736468380038,1.22949,3230.2,3229.9,0.30962]
[1736468380341,0.9199,3230.2,3229.5,44.0078]
[1736468380540,1.22949,3230.2,3229.6,0.30965]
[1736468380734,1.22949,3230.2,3229.5,44.0078]
[1736468380735,0.3096,3230.1,3229.5,44.0078]
[1736468380935,0.3096,3230.1,3229.7,0.30963]
[1736468381743,0.9199,3230.2,3229.6,0.30964]
[1736468381945,0.3096,3230.1,3229.8,0.30963]
[1736468382942,0.3096,3230.1,3229.5,3.2078]
[1736468383251,0.3096,3230.1,3229.7,0.30963]
[1736468383841,0.9199,3230.2,3229.7,0.30963]
[1736468384037,0.9199,3230.2,3229.5,3.2078]
[1736468384347,0.30964,3229.7,3229.5,3.2078]
[1736468384638,2.43370529,3229.7,3228.8,3.2078]
[1736468384832,0.30969,3229.2,3228.8,3.51752]
[1736468385435,0.4769,3229.5,3228.8,3.2078]
[1736468385638,7.77149529,3230.2,3229.2,3.2078]
[1736468385837,0.49609344,3230.1,3229.3,0.30967]
[1736468386034,0.4435,3230.1,3229.2,3.2078]
[1736468386240,2.43370529,3229.6,3228.7,3.2078]
[1736468386543,0.30971,3229.0,3228.7,3.2078]
[1736468386736,0.30972,3228.8,3228.7,3.2078]
[1736468386933,0.30976,3228.5,3228.1,5.95128529]
[1736468387133,0.30978,3228.3,3228.0,3.2078]
[1736468387540,0.30977,3228.4,3228.0,3.5176]
[1736468387739,0.30979,3228.2,3228.0,3.2078]
[1736468388043,0.30979,3228.1,3228.0,3.2078]
[1736468389142,0.30979,3228.2,3228.0,3.2078]
[1736468389340,0.24292232,3228.4,3228.0,3.2078]
[1736468389540,0.30979,3228.2,3228.0,3.2078]
[1736468389844,3.38891603,3228.7,3228.0,3.2078]
[1736468390045,0.30979,3228.1,3228.0,3.2078]
[1736468390249,0.30983,3227.7,3227.6,3.2078]
[1736468391241,0.30985,3227.5,3227.0,0.30989]
[1736468391546,0.30984,3227.6,3227.0,0.30989]
[1736468391747,0.30986,3227.4,3227.0,0.30989]
[1736468392248,0.30985,3227.5,3227.0,0.30989]
[1736468392447,0.30986,3227.4,3227.0,0.30989]
[1736468392748,0.30987,3227.3,3226.9,0.3099]
[1736468393051,3.2078,3227.7,3226.8,44.31771]
[1736468393246,3.2078,3227.7,3226.8,44.0078]
[1736468393449,0.30987,3227.3,3226.9,0.3099]
[1736468394749,3.2078,3227.7,3226.8,44.0078]
[1736468395049,0.30988,3227.2,3226.9,0.30991]
[1736468395248,3.2078,3227.7,3226.9,0.30991]
[1736468395442,0.30987,3227.3,3226.9,0.30991]
[1736468395647,3.2078,3227.7,3226.8,44.0078]
[1736468395849,0.3099,3227.1,3226.8,44.0078]
[1736468396049,0.30988,3227.2,3226.8,44.31771]
[1736468396352,3.2078,3227.7,3226.8,44.0078]
[1736468396353,0.30989,3227.1,3226.8,44.0078]
[1736468397047,3.2078,3227.7,3226.8,44.31771]
[1736468397356,0.30989,3227.1,3226.8,44.0078]
[1736468397849,0.3099,3227.0,3226.8,44.0078]
[1736468398052,0.30988,3227.2,3226.8,44.31772]
[1736468398348,0.30989,3227.1,3226.8,44.0078]
[1736468398543,2.94951603,3227.5,3226.8,3.2078]
[1736468398752,0.30991,3226.9,3226.8,3.2078]
[1736468399053,3.2078,3227.3,3226.8,3.2078]
[1736468399347,0.30988,3227.2,3226.8,3.2078]
[1736468399951,3.2078,3227.3,3226.8,3.2078]
[1736468400149,0.30991,3226.9,3226.8,3.2078]
[1736468401248,0.30993,3226.7,3226.2,0.4534]
[1736468401554,0.30992,3226.8,3226.2,0.4534]
[1736468401853,0.30992,3226.8,3226.3,0.30996]
[1736468402049,3.41731603,3227.1,3226.2,0.4534]
[1736468402248,0.4678,3227.1,3226.2,0.4534]
[1736468402651,3.2078,3226.9,3226.1,3.656]
[1736468402851,0.30997,3226.3,3226.1,3.2078]
[1736468403551,0.30996,3226.4,3226.1,3.2078]
[1736468403745,0.4601,3226.6,3226.1,3.2078]
[1736468403950,0.4601,3226.6,3226.2,0.30997]
[1736468403951,0.4726,3226.5,3226.2,0.30997]
[1736468404150,0.4726,3226.5,3226.1,3.2078]
[1736468404351,0.78255,3226.5,3226.1,3.51778]
[1736468404855,0.78255,3226.5,3226.1,3.2078]
[1736468405056,0.4726,3226.5,3226.2,0.30997]
[1736468405250,3.2078,3226.9,3226.1,3.2078]
[1736468405251,0.77769,3227.1,3226.7,0.30992]
[1736468405450,0.30989,3227.1,3226.5,3.2078]
[1736468405651,0.3099,3227.0,3226.6,0.76913]
[1736468405852,0.30989,3227.1,3226.7,0.30992]
[1736468406050,3.6804,3227.3,3227.0,0.30989]
[1736468406656,0.4726,3227.3,3227.0,0.30989]
[1736468407157,0.78247,3227.3,3227.0,0.30989]
[1736468407357,0.78247,3227.3,3226.9,0.3099]
[1736468407650,0.30988,3227.2,3226.9,0.3099]
[1736468408056,2.74566103,3227.6,3227.2,0.30988]
[1736468408257,3.51764,3227.7,3227.0,0.3099]
[1736468408552,3.2078,3227.7,3227.2,0.30987]
[1736468408753,2.43582103,3227.6,3226.9,3.2078]
[1736468408950,2.89372103,3227.6,3226.9,3.2078]
[1736468409157,0.3099,3227.0,3226.9,3.2078]
[1736468409658,0.446,3227.2,3226.9,3.2078]
[1736468410160,0.30989,3227.1,3226.9,3.2078]
[1736468410351,0.446,3227.2,3226.9,3.2078]
[1736468410546,0.446,3227.2,3226.9,3.5177]
[1736468411050,0.75588,3227.2,3226.9,3.2078]
[1736468411357,3.2078,3227.7,3227.4,0.30985]
[1736468411658,3.2078,3227.7,3226.9,3.2078]
[1736468411864,0.30986,3227.5,3227.1,0.30988]
[1736468412056,3.51763,3227.7,3227.4,0.30986]
[1736468412250,3.2078,3227.7,3226.9,3.2078]
[1736468412555,3.2078,3227.7,3227.3,0.30986]
[1736468412949,3.51763,3227.7,3227.3,0.30986]
[1736468413654,3.2078,3227.7,3226.9,3.2078]
[1736468413852,0.30985,3227.6,3226.9,3.2078]
[1736468414053,3.2078,3227.7,3226.9,3.2078]
[1736468414254,3.51764,3227.7,3227.3,0.30986]
[1736468414662,0.30984,3227.7,3227.3,0.30986]
[1736468415161,0.30983,3227.8,3227.4,0.30986]
[1736468415364,3.2078,3227.9,3227.3,0.9064]
[1736468415564,0.30981,3227.9,3227.5,0.30984]
[1736468415759,0.30986,3227.4,3227.2,3.2078]
[1736468415956,0.30984,3227.6,3227.2,3.51767]
[1736468416357,0.4649,3227.8,3227.2,3.2078]
[1736468417058,0.30985,3227.5,3227.2,3.51767]
[1736468417362,0.30987,3227.3,3227.2,3.2078]
[1736468418466,0.4741,3227.4,3227.2,3.2078]
[1736468418766,0.30987,3227.3,3227.2,3.2078]
[1736468419262,0.4741,3227.4,3227.2,3.2078]
[1736468419464,0.30984,3227.6,3227.3,0.30987]
[1736468419955,3.2078,3227.9,3227.3,2.43582103]
[1736468420159,3.2078,3227.9,3227.8,0.30982]
[1736468420359,3.2078,3227.9,3227.4,0.945]
[1736468420560,3.2078,3227.9,3227.6,0.30983]
[1736468420772,3.2078,3227.9,3227.8,0.30982]
[1736468420961,0.4385,3228.7,3227.6,5.64362103]
[1736468421164,0.74824,3228.7,3228.3,0.30977]
[1736468421465,0.30974,3228.6,3228.2,3.51757]
[1736468421654,0.4385,3228.7,3228.2,3.2078]
[1736468421858,3.6463,3228.7,3227.8,3.2078]
[1736468422060,2.43582103,3229.0,3228.2,3.2078]
[1736468422259,1.363,3229.1,3228.3,0.4604]
[1736468422260,0.4746,3229.1,3228.3,0.4604]
[1736468422471,0.4746,3229.1,3228.4,40.8]
[1736468422766,0.30973,3228.8,3228.4,41.10976]
[1736468423164,5.88759545,3229.3,3228.4,40.8]
[1736468423358,0.30974,3228.7,3228.3,0.4604]
[1736468423754,0.30974,3228.7,3228.3,0.77017]
[1736468424668,0.30974,3228.7,3228.3,0.4604]
[1736468424870,0.30974,3228.6,3228.3,0.4604]
[1736468425065,0.30978,3228.3,3227.9,3.2078]
[1736468425366,0.30977,3228.4,3227.9,3.5176]
[1736468425968,0.4349,3228.5,3227.9,3.5176]
[1736468426164,0.30978,3228.3,3227.9,3.5176]
[1736468426861,0.4349,3228.5,3227.9,3.2078]
[1736468427059,3.6427,3228.5,3227.9,3.2078]
[1736468427265,0.3098,3228.0,3227.9,3.2078]
[1736468427569,0.30982,3227.8,3227.6,0.4513]
[1736468427764,0.30985,3227.5,3227.4,3.2078]
[1736468427969,3.67683103,3228.4,3227.4,3.2078]
[1736468427970,0.30984,3227.6,3227.4,3.2078]
[1736468428371,0.30985,3227.5,3227.4,3.2078]
[1736468428968,0.30983,3227.7,3227.4,3.2078]
[1736468429466,0.30977,3228.3,3227.4,6.41827103]
[1736468429767,0.30976,3228.4,3228.1,0.30978]
[1736468429971,0.74466,3228.5,3228.2,0.30978]
[1736468430169,0.4349,3228.5,3227.9,0.9008]
[1736468430360,0.4349,3228.5,3228.2,0.30977]
[1736468430560,0.74466,3228.5,3228.1,0.30979]
[1736468430765,0.30977,3228.4,3228.0,0.3098]
[1736468430973,0.30979,3228.1,3227.9,0.4641]
[1736468431270,0.3098,3228.0,3227.8,3.2078]
[1736468431475,0.4349,3228.5,3227.8,3.2078]
[1736468431768,0.3098,3228.1,3227.8,3.51762]
[1736468432368,3.6427,3228.5,3227.8,3.2078]
[1736468432666,0.30981,3227.9,3227.8,3.2078]
[1736468432967,0.30982,3227.8,3227.4,0.30986]
[1736468433168,0.30982,3227.8,3227.3,3.2078]
[1736468433367,3.6427,3228.5,3227.3,3.2078]
[1736468433569,3.6427,3228.5,3227.6,2.95016656]
[1736468433767,0.30977,3228.4,3228.0,0.3098]
[1736468433962,3.6427,3228.5,3227.6,2.95016656]
[1736468434162,0.30978,3228.2,3227.9,0.3098]
[1736468435167,3.6427,3228.5,3227.9,0.3098]
[1736468435368,0.30981,3228.0,3227.7,0.30982]
[1736468435564,3.6427,3228.5,3227.3,3.2078]
[1736468435781,0.30982,3227.8,3227.5,0.30984]
[1736468436069,3.6427,3228.5,3227.3,3.2078]
[1736468436070,0.3098,3228.0,3227.8,0.30982]
[1736468436271,0.30982,3227.9,3227.6,0.30984]
[1736468437373,0.30982,3227.9,3227.3,3.2078]
[1736468437671,0.30982,3227.9,3227.7,0.30983]
[1736468437869,3.6427,3228.5,3227.3,3.2078]
[1736468438073,0.05262224,3228.4,3227.5,0.30984]
[1736468438272,0.30984,3227.7,3227.4,0.30985]
[1736468438471,0.77444,3228.3,3227.5,0.30985]
[1736468438773,0.30983,3227.8,3227.5,0.30985]
[1736468439069,0.30981,3228.0,3227.7,0.30983]
[1736468439267,0.4351,3228.2,3227.3,3.2078]
[1736468439467,3.95245,3228.5,3228.2,0.30978]
[1736468439666,3.51755,3228.5,3228.2,0.30978]
[1736468440578,3.51755,3228.5,3228.1,0.30978]
[1736468440775,0.30977,3228.3,3228.0,0.3098]
[1736468441469,0.30978,3228.3,3228.0,0.3098]
[1736468441777,0.30976,3228.4,3228.1,0.30978]
[1736468442574,0.30976,3228.4,3227.9,0.4756]
[1736468442778,0.30976,3228.4,3228.2,0.30978]
[1736468443072,0.30976,3228.4,3228.1,0.30978]
[1736468443774,0.30976,3228.4,3228.2,0.30978]
[1736468444976,3.6717,3228.9,3228.2,0.30978]
[1736468445178,0.30976,3228.5,3228.2,0.30978]
[1736468445372,0.30976,3228.4,3228.2,0.30978]
[1736468446371,0.30976,3228.5,3228.2,0.30978]
[1736468446874,3.6717,3228.9,3228.4,0.30976]
[1736468447079,0.30967,3229.4,3229.2,0.30968]
[1736468447273,11.7163532,3229.5,3229.4,0.30967]
[1736468447577,10.87363415,3229.5,3229.4,0.30967]
[1736468448380,0.74119,3230.2,3229.9,0.30961]
[1736468448679,0.41111905,3230.4,3229.7,3.2078]
[1736468448879,0.41111905,3230.4,3230.3,0.30958]
[1736468449068,10.87363415,3230.7,3230.3,0.30958]
[1736468449069,10.87363415,3230.7,3230.6,0.30955]
[1736468449776,10.87363415,3230.7,3230.6,41.10955]
[1736468450173,0.3095,3231.2,3230.6,40.8]
[1736468450381,0.3095,3231.2,3230.9,0.30952]
[1736468450771,0.3095,3231.2,3230.7,3.2078]
[1736468450979,0.3095,3231.2,3230.8,0.30953]
[1736468451778,0.4698,3231.5,3231.4,0.30947]
[1736468451979,0.4698,3231.5,3231.1,3.5173]
[1736468452178,0.4698,3231.5,3231.1,3.2078]
[1736468452576,0.4698,3231.5,3231.1,3.5173]
[1736468452977,0.77927,3231.5,3231.1,3.2078]
[1736468453178,0.4698,3231.5,3231.1,3.2078]
[1736468453486,0.4698,3231.5,3231.2,0.30949]
[1736468454578,0.30947,3231.4,3231.1,3.2078]
[1736468454885,0.77927,3231.5,3231.1,3.2078]
[1736468455180,0.77927,3231.5,3231.1,3.5173]
[1736468455383,0.4457,3231.6,3231.1,3.2078]
[1736468455579,0.4457,3231.6,3231.4,0.30947]
[1736468456779,0.4735,3232.0,3231.1,3.2078]
[1736468456980,0.30947,3231.5,3231.1,3.5173]
[1736468457182,0.4635,3231.9,3231.1,3.2078]
[1736468457382,0.4635,3231.9,3231.4,0.30947]
[1736468457582,0.30944,3231.8,3231.4,0.30947]
[1736468458401,0.4635,3231.9,3231.1,3.2078]
[1736468458796,0.30945,3231.7,3231.3,0.30948]
[1736468458995,0.30944,3231.8,3231.4,0.30947]
[1736468459194,0.4635,3231.9,3231.1,3.2078]
[1736468459596,0.30944,3231.8,3231.1,3.2078]
[1736468459893,0.4635,3231.9,3231.1,3.2078]
[1736468460094,3.6813,3232.0,3231.8,0.30944]
[1736468460095,3.2078,3232.0,3231.8,0.30944]
[1736468460298,3.2078,3232.0,3231.7,0.30944]
[1736468460603,0.30943,3231.9,3231.6,3.2078]
[1736468460804,3.2078,3232.0,3231.6,3.51725]
[1736468461004,0.4718,3232.2,3231.6,3.51725]
[1736468461005,3.2078,3232.4,3231.6,3.2078]
[1736468461301,3.2078,3233.3,3232.3,2.95016656]
[1736468461500,6.69473529,3233.4,3232.7,3.2078]
[1736468461804,6.44995548,3233.4,3232.7,6.15796656]
[1736468462007,6.15796656,3233.9,3233.0,0.30931]
[1736468462199,3.45035634,3233.9,3232.7,6.15796656]
[1736468462401,3.45035634,3233.9,3233.1,3.2078]
[1736468462702,0.30927,3233.6,3233.1,3.2078]
[1736468462897,6.4005229,3233.9,3233.1,3.2078]
[1736468463102,3.2078,3233.5,3232.5,3.2078]
[1736468463308,0.4726,3233.4,3232.5,3.2078]
[1736468463506,0.30932,3233.0,3232.6,0.30935]
[1736468464101,1.24689,3233.4,3232.9,3.2078]
[1736468464306,1.24689,3233.4,3233.0,0.30932]
[1736468465015,1.24689,3233.4,3233.1,0.30931]
[1736468465309,0.9376,3233.4,3233.0,0.30932]
[1736468465709,1.24688,3233.4,3233.0,0.30932]
[1736468466708,0.9376,3233.4,3233.0,0.30932]
[1736468467305,3.2078,3233.9,3233.1,2.95016656]
[1736468467604,3.2078,3233.9,3233.5,2.95016656]
[1736468467803,3.2078,3233.9,3233.6,0.30926]
[1736468468000,3.51704,3233.9,3233.5,3.25943656]
[1736468468208,0.30924,3233.9,3233.6,0.30926]
[1736468468505,0.9448,3234.2,3233.3,3.2078]
[1736468468700,1.08227,3234.1,3233.3,3.2078]
[1736468469009,0.30927,3233.6,3233.3,3.2078]
[1736468469305,0.30928,3233.4,3233.3,3.2078]
[1736468469508,3.2078,3233.8,3232.8,3.2078]
[1736468469703,0.4649,3233.3,3232.8,3.2078]
[1736468470000,0.30932,3233.1,3232.8,3.2078]
[1736468471117,0.30932,3233.1,3232.8,3.51714]
[1736468472311,0.30931,3233.1,3232.8,3.51714]
[1736468472604,0.4457,3233.2,3232.8,3.2078]
[1736468472808,3.2078,3233.0,3232.1,0.4696]
[1736468473011,3.2078,3233.0,3232.0,3.2078]
[1736468473513,0.30933,3232.9,3232.4,0.30937]
[1736468473712,0.30935,3232.8,3232.4,0.30937]
[1736468474010,0.4388,3233.1,3232.0,3.2078]
[1736468474308,3.2078,3233.0,3232.1,0.3094]
[1736468474512,0.30938,3232.4,3232.0,3.2078]
[1736468474810,0.3094,3232.2,3232.0,3.2078]
[1736468475005,0.30939,3232.3,3232.0,3.51722]
[1736468475210,3.2078,3233.0,3232.0,3.2078]
[1736468475403,0.4388,3233.1,3232.0,3.2078]
[1736468475606,0.30933,3232.9,3232.6,0.30936]
[1736468475806,0.30933,3233.0,3232.6,0.30936]
[1736468476006,0.4388,3233.1,3232.6,0.30935]
[1736468476207,0.30932,3233.0,3232.6,0.30935]
[1736468476509,0.30932,3233.0,3232.4,3.2078]
[1736468476510,0.30934,3232.8,3232.4,3.51717]
[1736468476811,0.30934,3232.8,3231.9,3.72372656]
[1736468476812,3.2078,3233.0,3232.0,3.2078]
[1736468477211,3.2078,3233.0,3232.4,0.30937]
[1736468477411,0.30936,3232.6,3232.3,0.30939]
[1736468477603,0.4388,3233.1,3232.0,3.2078]
[1736468477604,0.30932,3233.0,3232.4,0.30937]
[1736468477805,0.30935,3232.8,3232.5,0.30937]
[1736468478007,0.30935,3232.7,3232.4,0.30937]
[1736468479209,0.4388,3233.1,3232.0,3.2078]
[1736468479713,6.15796656,3232.7,3231.4,3.2078]
[1736468479915,0.30945,3231.7,3231.4,3.2078]
[1736468480114,0.30943,3231.9,3231.4,44.0078]
[1736468480314,0.30943,3231.9,3231.6,0.30945]
[1736468480916,0.30943,3231.9,3231.7,0.30944]
[1736468481109,0.9486,3232.3,3231.8,3.2078]
[1736468481514,0.9486,3232.3,3231.8,3.51723]
[1736468481914,0.30943,3231.9,3231.8,3.2078]
[1736468482109,0.30946,3231.5,3231.4,44.0078]
[1736468482311,5.63571055,3232.1,3230.9,3.2078]
[1736468482514,0.30948,3231.4,3231.3,3.2078]
[1736468482719,0.30947,3231.4,3231.3,3.2078]
[1736468483015,0.77355,3232.0,3231.1,40.8]
[1736468483218,5.63571055,3232.1,3230.8,5.63571055]
[1736468483520,0.30946,3231.6,3231.3,0.30948]
[1736468483713,3.2078,3232.1,3231.3,0.30948]
[1736468483714,0.30947,3231.5,3231.3,0.30948]
[1736468484411,3.98133,3232.1,3231.2,3.2078]
[1736468484720,6.40924055,3232.1,3231.2,3.2078]
[1736468485023,0.30947,3231.5,3231.3,0.30948]
[1736468485319,3.2078,3231.7,3230.8,3.2078]
[1736468485520,0.30954,3230.7,3230.6,3.87053104]
[1736468485709,0.77372,3231.3,3230.6,3.87053104]
[1736468486023,0.30952,3230.9,3230.7,41.10953]
[1736468486317,0.4322,3231.4,3230.6,3.87053104]
[1736468486318,0.30954,3230.7,3230.6,3.2078]
[1736468487018,0.30954,3230.7,3230.6,1.39995212]
[1736468487215,0.77384,3230.8,3229.4,0.4348]
[1736468487517,0.30962,3230.0,3229.7,0.30963]
[1736468487713,0.30962,3230.0,3229.8,0.30963]
[1736468487914,3.2078,3230.5,3229.4,0.4348]
[1736468488107,0.30962,3229.9,3229.6,0.30964]
[1736468488312,3.2078,3230.5,3229.6,0.30964]
[1736468488513,0.30963,3229.8,3229.6,0.30964]
[1736468488712,0.30957,3230.4,3229.8,0.30963]
[1736468488923,0.30961,3230.1,3229.8,0.30963]
[1736468489313,0.30961,3230.1,3229.8,0.30962]
[1736468490027,0.30963,3229.8,3229.4,3.6426]
[1736468490317,0.30966,3229.5,3229.4,3.2078]
[1736468490522,0.30966,3229.5,3229.2,0.30968]
[1736468490724,3.2078,3230.1,3229.1,0.4775]
[1736468491018,0.30966,3229.5,3229.2,0.30968]
[1736468491220,3.2078,3230.1,3229.1,0.4775]
[1736468491419,3.7173684,3230.5,3229.4,3.2078]
[1736468491420,0.3096,3230.2,3229.4,3.2078]
[1736468491621,0.3096,3230.1,3229.9,0.30961]
[1736468492622,0.3096,3230.1,3229.9,0.30962]
[1736468493224,3.2078,3230.5,3230.0,40.8]
[1736468493724,0.30955,3230.6,3230.4,0.30957]
[1736468493924,0.30957,3230.5,3230.3,0.30958]
[1736468494119,3.2078,3230.9,3230.2,3.2078]
[1736468494321,3.2078,3230.9,3230.1,0.473]
[1736468494516,0.30956,3230.5,3230.2,0.30958]
[1736468494825,0.30956,3230.5,3230.2,0.30959]
[1736468495720,0.30955,3230.6,3230.2,3.2078]
[1736468495920,3.2078,3230.9,3230.3,0.30957]
[1736468496222,0.30956,3230.5,3230.3,0.30957]
[1736468496622,0.30957,3230.4,3230.2,3.51739]
[1736468496818,3.2078,3230.9,3230.2,3.2078]
[1736468497521,0.30959,3230.2,3230.1,0.473]
[1736468498230,0.30958,3230.3,3230.1,0.78259]
[1736468498927,0.30958,3230.3,3229.8,3.2078]
[1736468499226,0.77406,3229.9,3229.0,3.2078]
[1736468499429,0.30969,3229.1,3229.0,3.2078]
[1736468499729,3.2078,3229.2,3228.6,4.78317776]
[1736468499926,0.30973,3228.7,3228.6,4.78317776]
[1736468500430,3.2078,3229.2,3228.6,4.78317776]
[1736468500621,0.30973,3228.7,3228.6,4.78317776]
[1736468500823,3.2078,3229.2,3228.5,44.0078]
[1736468501120,0.30974,3228.6,3228.5,3.2078]
[1736468501327,0.30974,3228.6,3227.9,0.4696]
[1736468501328,3.2078,3228.7,3227.9,0.4696]
[1736468501526,0.30979,3228.2,3228.0,0.3098]
[1736468502325,3.2078,3228.7,3227.9,40.8]
[1736468502526,0.30977,3228.3,3228.1,0.30979]
[1736468503023,3.2078,3228.7,3227.9,40.8]
[1736468503229,0.3098,3228.0,3227.9,40.8]
[1736468503427,0.77443,3228.4,3227.7,3.2078]
[1736468503629,0.30981,3228.0,3227.7,3.2078]
[1736468503827,0.30981,3227.9,3227.7,3.51762]
[1736468504435,3.3797484,3228.5,3227.7,3.2078]
[1736468504627,0.4363,3228.5,3227.7,3.2078]
[1736468504934,0.3098,3228.1,3227.8,0.30982]
[1736468505134,0.4363,3228.5,3227.8,0.30982]
[1736468505430,0.4363,3228.5,3227.7,3.2078]
[1736468505630,0.30979,3228.2,3227.9,0.30981]
[1736468505827,0.30979,3228.1,3227.9,0.30981]
[1736468506031,0.30978,3228.2,3227.9,0.30981]
[1736468506330,0.30978,3228.2,3228.0,0.3098]
[1736468506832,0.30978,3228.3,3228.0,0.3098]
[1736468507039,0.4363,3228.5,3228.0,0.3098]
[1736468507329,0.4363,3228.5,3227.9,0.3098]
[1736468507630,0.30978,3228.3,3227.9,0.3098]
[1736468507830,0.30979,3228.2,3227.9,0.3098]
[1736468508224,3.2078,3228.2,3227.7,3.2078]
[1736468508430,0.30979,3228.1,3227.7,3.51762]
[1736468508636,3.2078,3228.2,3227.8,0.30981]
[1736468509128,3.2078,3228.2,3226.8,3.2078]
[1736468509129,4.8237765,3228.1,3226.8,3.2078]
[1736468509431,0.30988,3227.2,3226.8,3.2078]
[1736468509736,0.30989,3227.1,3226.7,0.30992]
[1736468510235,0.30988,3227.2,3226.3,0.30996]
[1736468510434,0.30988,3227.2,3226.8,0.30991]
[1736468510930,3.51767,3227.3,3227.0,0.30989]
[1736468511135,3.2078,3227.7,3226.6,3.2078]
[1736468511335,3.51764,3227.7,3227.0,3.2078]
[1736468511635,3.51764,3227.7,3227.4,0.30986]
[1736468511931,3.2078,3227.7,3227.5,0.30985]
[1736468512733,3.2078,3227.7,3227.1,0.9413]
[1736468513033,0.30984,3227.6,3227.3,0.30986]
[1736468513228,3.2078,3227.7,3227.1,0.9413]
[1736468513432,0.30988,3227.2,3227.0,3.2078]
[1736468514035,0.30988,3227.2,3227.0,3.51769]
[1736468514238,3.2078,3227.7,3227.0,3.2078]
[1736468514732,3.2078,3227.7,3227.1,0.30988]
[1736468514733,0.30986,3227.4,3227.1,0.30988]
[1736468514938,0.30987,3227.3,3227.2,40.8]
[1736468515137,3.2078,3227.3,3226.4,3.2078]
[1736468515337,0.30988,3227.2,3226.9,0.3099]
[1736468515735,0.3099,3227.0,3226.7,0.30992]
[1736468515930,0.3099,3227.0,3226.8,0.30991]
[1736468516239,0.3099,3227.0,3226.7,0.30992]
[1736468516436,3.2078,3227.3,3226.4,3.2078]
[1736468516636,0.93308163,3229.3,3226.8,3.2078]
[1736468516637,3.2078,3227.7,3226.8,3.2078]